[Event "*** Titled Tuesday Blitz"]
[Site "Chess.com"]
[Date "2020.05.26"]
[Round "1"]
[White "KaterinaMiroshnik"]
[Black "Onischuk_V"]
[Result "0-1"]
[WhiteElo "2429"]
[BlackElo "2896"]
[TimeControl "180+1"]
[EndTime "10:08:02 PDT"]
[Termination "Onischuk_V won by resignation"]

1. d3 {[%clk 0:03:00.9]} 1... g6 {[%clk 0:02:59.3]} 2. Nd2 {[%clk 0:03:01.8]}
2... Bg7 {[%clk 0:02:59.6]} 3. Ngf3 {[%clk 0:03:02.5]} 3... c5 {[%clk
0:02:59.5]} 4. e4 {[%clk 0:03:02.9]} 4... Nc6 {[%clk 0:02:59.7]} 5. Be2 {[%clk
0:03:03.8]} 5... d6 {[%clk 0:02:59.6]} 6. O-O {[%clk 0:03:04.7]} 6... Nf6 {[%clk
0:02:58.2]} 7. c3 {[%clk 0:03:05.6]} 7... O-O {[%clk 0:02:53.3]} 8. Re1 {[%clk
0:03:06.5]} 8... Nd7 {[%clk 0:02:49.9]} 9. Bf1 {[%clk 0:03:07.4]} 9... b5 {[%clk
0:02:49.6]} 10. Qc2 {[%clk 0:03:07.1]} 10... b4 {[%clk 0:02:49.3]} 11. Nc4
{[%clk 0:03:03.5]} 11... Ba6 {[%clk 0:02:47.7]} 12. Ne3 {[%clk 0:02:58.3]} 12...
Rb8 {[%clk 0:02:43]} 13. Bd2 {[%clk 0:02:57.2]} 13... Qa5 {[%clk 0:02:37]} 14.
c4 {[%clk 0:02:51.1]} 14... Qd8 {[%clk 0:02:31.4]} 15. Rad1 {[%clk 0:02:43.9]}
15... e6 {[%clk 0:02:28.6]} 16. b3 {[%clk 0:02:41.7]} 16... Nde5 {[%clk
0:02:25.9]} 17. Nxe5 {[%clk 0:02:37.7]} 17... dxe5 {[%clk 0:02:22.3]} 18. Bc1
{[%clk 0:02:32.3]} 18... Nd4 {[%clk 0:02:21.7]} 19. Qb1 {[%clk 0:02:31.2]} 19...
f5 {[%clk 0:02:20.3]} 20. exf5 {[%clk 0:02:29]} 20... exf5 {[%clk 0:02:18.1]}
21. Bb2 {[%clk 0:02:26.3]} 21... Bb7 {[%clk 0:02:16.4]} 22. Bxd4 {[%clk
0:02:19.3]} 22... cxd4 {[%clk 0:02:12.3]} 23. Nc2 {[%clk 0:02:17.6]} 23... a5
{[%clk 0:02:11.5]} 24. a3 {[%clk 0:02:16.4]} 24... bxa3 {[%clk 0:02:05.8]} 25.
Qa2 {[%clk 0:02:10]} 25... Qd6 {[%clk 0:01:56.4]} 26. Ra1 {[%clk 0:02:01.3]}
26... e4 {[%clk 0:01:36.2]} 27. Qxa3 {[%clk 0:01:56.3]} 27... Qxa3 {[%clk
0:01:34.7]} 28. Rxa3 {[%clk 0:01:57.2]} 28... Bc6 {[%clk 0:01:35]} 29. Rb1
{[%clk 0:01:52.4]} 29... Ra8 {[%clk 0:01:32.4]} 30. Be2 {[%clk 0:01:44.8]} 30...
Rfb8 {[%clk 0:01:30.4]} 31. Kf1 {[%clk 0:01:41.5]} 31... Rb7 {[%clk 0:01:16.3]}
32. g3 {[%clk 0:01:28.2]} 32... Rab8 {[%clk 0:01:11.4]} 33. Rxa5 {[%clk
0:01:03.4]} 33... Rxb3 {[%clk 0:01:10.4]} 34. Rxb3 {[%clk 0:01:01.9]} 34... Rxb3
{[%clk 0:01:10.3]} 35. Ne1 {[%clk 0:00:59.2]} 35... Bf8 {[%clk 0:01:06.9]} 36.
Ra6 {[%clk 0:00:53.8]} 36... Bb7 {[%clk 0:01:06.6]} 37. Ra1 {[%clk 0:00:51.7]}
37... Rb2 {[%clk 0:01:04.4]} 38. Rd1 {[%clk 0:00:49.8]} 38... Bc5 {[%clk
0:01:00.7]} 39. Ng2 {[%clk 0:00:48.2]} 39... g5 {[%clk 0:01:00.5]} 40. h4 {[%clk
0:00:47.3]} 40... h6 {[%clk 0:01:00.3]} 41. hxg5 {[%clk 0:00:48.2]} 41... hxg5
{[%clk 0:01:00.2]} 42. g4 {[%clk 0:00:48.5]} 42... f4 {[%clk 0:00:57.5]} 43.
dxe4 {[%clk 0:00:44.6]} 43... Bxe4 {[%clk 0:00:53.1]} 44. Bd3 {[%clk 0:00:42.6]}
44... Bf3 {[%clk 0:00:50.4]} 45. Ra1 {[%clk 0:00:39.3]} 45... Kf7 {[%clk
0:00:30.3]} 46. Ne1 {[%clk 0:00:31.8]} 46... Bxg4 {[%clk 0:00:29.4]} 47. f3
{[%clk 0:00:31.2]} 47... Bh3+ {[%clk 0:00:29]} 48. Kg1 {[%clk 0:00:31.5]} 48...
Bb4 {[%clk 0:00:26.6]} 49. Ra7+ {[%clk 0:00:30.8]} 49... Ke8 {[%clk 0:00:23]}
50. Ra8+ {[%clk 0:00:30.1]} 50... Kd7 {[%clk 0:00:22.7]} 51. Ra7+ {[%clk
0:00:28.6]} 51... Kc8 {[%clk 0:00:22.2]} 52. Ra1 {[%clk 0:00:27]} 52... Bd2
{[%clk 0:00:20.6]} 53. Be4 {[%clk 0:00:24.3]} 53... Be3+ {[%clk 0:00:19.4]} 54.
Kh1 {[%clk 0:00:22.8]} 54... Re2 {[%clk 0:00:16.3]} 55. c5 {[%clk 0:00:22.2]}
55... d3 {[%clk 0:00:14.9]} 56. c6 {[%clk 0:00:19.5]} 56... d2 {[%clk
0:00:12.9]} 57. Ra8+ {[%clk 0:00:19.2]} 57... Kc7 {[%clk 0:00:12.7]} 0-1

[Event "*** Titled Tuesday Blitz"]
[Site "Chess.com"]
[Date "2020.05.26"]
[Round "1"]
[White "VerdeNotte"]
[Black "Tejas_Rama"]
[Result "1-0"]
[WhiteElo "2768"]
[BlackElo "2393"]
[TimeControl "180+1"]
[EndTime "10:08:04 PDT"]
[Termination "VerdeNotte won by checkmate"]

1. e4 {[%clk 0:02:56.1]} 1... c5 {[%clk 0:02:57.2]} 2. Nc3 {[%clk 0:02:55]} 2...
Nc6 {[%clk 0:02:55.6]} 3. Bb5 {[%clk 0:02:53.5]} 3... Nd4 {[%clk 0:02:48.7]} 4.
Bc4 {[%clk 0:02:51.7]} 4... e6 {[%clk 0:02:46.1]} 5. Nf3 {[%clk 0:02:49.6]} 5...
a6 {[%clk 0:02:39]} 6. Nxd4 {[%clk 0:02:43.4]} 6... cxd4 {[%clk 0:02:39.9]} 7.
Ne2 {[%clk 0:02:43.5]} 7... Bc5 {[%clk 0:02:34.2]} 8. c3 {[%clk 0:02:35.3]} 8...
dxc3 {[%clk 0:02:30.5]} 9. bxc3 {[%clk 0:02:33.9]} 9... b5 {[%clk 0:02:28]} 10.
Bb3 {[%clk 0:02:32.8]} 10... d6 {[%clk 0:02:20]} 11. d4 {[%clk 0:02:31.7]} 11...
Bb6 {[%clk 0:02:16]} 12. O-O {[%clk 0:02:27.1]} 12... Nf6 {[%clk 0:02:13.1]} 13.
Ng3 {[%clk 0:02:24.1]} 13... Bb7 {[%clk 0:02:08.6]} 14. Re1 {[%clk 0:02:23.5]}
14... Rc8 {[%clk 0:01:55.1]} 15. Qd3 {[%clk 0:02:10.5]} 15... Qc7 {[%clk
0:01:43.8]} 16. Bd2 {[%clk 0:02:01.9]} 16... O-O {[%clk 0:01:38.7]} 17. a4
{[%clk 0:02:01.6]} 17... bxa4 {[%clk 0:01:23.4]} 18. Rxa4 {[%clk 0:01:58.3]}
18... d5 {[%clk 0:01:16.5]} 19. exd5 {[%clk 0:01:35.4]} 19... exd5 {[%clk
0:01:10.1]} 20. Re5 {[%clk 0:01:22.5]} 20... Rfe8 {[%clk 0:01:05.3]} 21. Rxe8+
{[%clk 0:00:51.2]} 21... Rxe8 {[%clk 0:01:06.2]} 22. f3 {[%clk 0:00:48.3]} 22...
g6 {[%clk 0:00:58.4]} 23. Ra1 {[%clk 0:00:44.8]} 23... a5 {[%clk 0:00:54.8]} 24.
Bg5 {[%clk 0:00:40]} 24... Kg7 {[%clk 0:00:49.9]} 25. Qd2 {[%clk 0:00:37.8]}
25... Rc8 {[%clk 0:00:44]} 26. Rc1 {[%clk 0:00:13.3]} 26... Ng8 {[%clk
0:00:41.2]} 27. Bf4 {[%clk 0:00:12.1]} 27... Qd7 {[%clk 0:00:38.6]} 28. Be5+
{[%clk 0:00:11.9]} 28... f6 {[%clk 0:00:37.4]} 29. Bf4 {[%clk 0:00:12.4]} 29...
Ne7 {[%clk 0:00:36.8]} 30. h4 {[%clk 0:00:12.4]} 30... a4 {[%clk 0:00:33.3]} 31.
Bc2 {[%clk 0:00:11.5]} 31... a3 {[%clk 0:00:32.7]} 32. h5 {[%clk 0:00:11.9]}
32... Bc7 {[%clk 0:00:28.6]} 33. h6+ {[%clk 0:00:09.4]} 33... Kf7 {[%clk
0:00:28.1]} 34. Bb3 {[%clk 0:00:09.5]} 34... Bxf4 {[%clk 0:00:27.1]} 35. Qxf4
{[%clk 0:00:10.4]} 35... g5 {[%clk 0:00:25.6]} 36. Qe3 {[%clk 0:00:10.3]} 36...
Ng6 {[%clk 0:00:25.5]} 37. Re1 {[%clk 0:00:09.3]} 37... Re8 {[%clk 0:00:25.3]}
38. Qd2 {[%clk 0:00:09.6]} 38... Nf4 {[%clk 0:00:24.1]} 39. Nf1 {[%clk
0:00:06.9]} 39... Rxe1 {[%clk 0:00:22.3]} 40. Qxe1 {[%clk 0:00:07.8]} 40... Qe6
{[%clk 0:00:22.9]} 41. Qxe6+ {[%clk 0:00:07.2]} 41... Kxe6 {[%clk 0:00:23.8]}
42. Nd2 {[%clk 0:00:06.6]} 42... Ba6 {[%clk 0:00:24.2]} 43. Nb1 {[%clk
0:00:06.6]} 43... Ne2+ {[%clk 0:00:23.9]} 44. Kf2 {[%clk 0:00:06.7]} 44... Bc4
{[%clk 0:00:22.9]} 45. Bxc4 {[%clk 0:00:06.6]} 45... dxc4 {[%clk 0:00:23.8]} 46.
Nxa3 {[%clk 0:00:07.3]} 46... Nf4 {[%clk 0:00:24.2]} 47. Nxc4 {[%clk 0:00:07.4]}
47... Nd3+ {[%clk 0:00:24.8]} 48. Ke2 {[%clk 0:00:07.3]} 48... Nf4+ {[%clk
0:00:25.4]} 49. Kf2 {[%clk 0:00:07.4]} 49... Kd5 {[%clk 0:00:25.8]} 50. Ne3+
{[%clk 0:00:07.3]} 50... Ke6 {[%clk 0:00:25.8]} 51. c4 {[%clk 0:00:07.8]} 51...
Nd3+ {[%clk 0:00:25.8]} 52. Ke2 {[%clk 0:00:07.6]} 52... Nf4+ {[%clk 0:00:26.3]}
53. Kd2 {[%clk 0:00:08.2]} 53... f5 {[%clk 0:00:26.1]} 54. g3 {[%clk 0:00:08.5]}
54... Ng6 {[%clk 0:00:26.1]} 55. Kd3 {[%clk 0:00:08.6]} 55... Ne7 {[%clk
0:00:26.5]} 56. d5+ {[%clk 0:00:08.7]} 56... Kf6 {[%clk 0:00:27]} 57. Kd4 {[%clk
0:00:08.9]} 57... f4 {[%clk 0:00:26.9]} 58. Ng4+ {[%clk 0:00:09.3]} 58... Kf5
{[%clk 0:00:27]} 59. gxf4 {[%clk 0:00:09.9]} 59... Kxf4 {[%clk 0:00:26.1]} 60.
d6 {[%clk 0:00:10.4]} 60... Nf5+ {[%clk 0:00:26.2]} 61. Kd5 {[%clk 0:00:11]}
61... Kxf3 {[%clk 0:00:26.6]} 62. Ne5+ {[%clk 0:00:11]} 62... Kf4 {[%clk
0:00:26.2]} 63. d7 {[%clk 0:00:11.3]} 63... Ne7+ {[%clk 0:00:26.8]} 64. Ke6
{[%clk 0:00:11.6]} 64... Nc6 {[%clk 0:00:26.4]} 65. Nxc6 {[%clk 0:00:11.6]}
65... g4 {[%clk 0:00:27.3]} 66. d8=Q {[%clk 0:00:11.8]} 66... Kf3 {[%clk
0:00:28.2]} 67. Ne5+ {[%clk 0:00:11.2]} 67... Kg3 {[%clk 0:00:29.1]} 68. Qg5
{[%clk 0:00:10.8]} 68... Kh3 {[%clk 0:00:30]} 69. Qxg4+ {[%clk 0:00:11.2]} 69...
Kh2 {[%clk 0:00:30.5]} 70. Nf3+ {[%clk 0:00:11.8]} 70... Kh1 {[%clk 0:00:31.4]}
71. Qg1# {[%clk 0:00:12.3]} 1-0

[Event "*** Titled Tuesday Blitz"]
[Site "Chess.com"]
[Date "2020.05.26"]
[Round "1"]
[White "JTCoach"]
[Black "Parkas"]
[Result "1-0"]
[WhiteElo "2658"]
[BlackElo "2305"]
[TimeControl "180+1"]
[EndTime "10:08:05 PDT"]
[Termination "JTCoach won by resignation"]

1. e4 {[%clk 0:03:00.9]} 1... g6 {[%clk 0:03:00]} 2. d4 {[%clk 0:03:00.6]} 2...
Bg7 {[%clk 0:03:00.4]} 3. Nc3 {[%clk 0:03:00.8]} 3... a6 {[%clk 0:03:00.5]} 4.
g3 {[%clk 0:02:57.4]} 4... b5 {[%clk 0:02:59.7]} 5. Bg2 {[%clk 0:02:57.7]} 5...
Bb7 {[%clk 0:03:00.2]} 6. a3 {[%clk 0:02:53.3]} 6... e6 {[%clk 0:03:00.1]} 7.
Nge2 {[%clk 0:02:53.5]} 7... Ne7 {[%clk 0:03:00.2]} 8. O-O {[%clk 0:02:53.8]}
8... O-O {[%clk 0:02:59.1]} 9. Be3 {[%clk 0:02:53.5]} 9... d5 {[%clk 0:02:57]}
10. e5 {[%clk 0:02:51.7]} 10... Nd7 {[%clk 0:02:52.6]} 11. f4 {[%clk 0:02:47]}
11... Nf5 {[%clk 0:02:43.1]} 12. Bf2 {[%clk 0:02:43.8]} 12... h5 {[%clk
0:02:41.9]} 13. h3 {[%clk 0:02:42.5]} 13... Rc8 {[%clk 0:02:40.1]} 14. Nb1
{[%clk 0:02:16.4]} 14... c5 {[%clk 0:02:36.9]} 15. c3 {[%clk 0:02:16.8]} 15...
cxd4 {[%clk 0:02:36]} 16. cxd4 {[%clk 0:02:16.2]} 16... Nb6 {[%clk 0:02:28.5]}
17. b3 {[%clk 0:02:13.8]} 17... Qe7 {[%clk 0:02:10.3]} 18. Nd2 {[%clk
0:02:10.5]} 18... Rc7 {[%clk 0:02:06.5]} 19. Nf3 {[%clk 0:02:07.2]} 19... Rfc8
{[%clk 0:02:04.8]} 20. Ra2 {[%clk 0:01:45.3]} 20... a5 {[%clk 0:01:58.6]} 21. g4
{[%clk 0:01:44.2]} 21... hxg4 {[%clk 0:01:58]} 22. hxg4 {[%clk 0:01:44.6]} 22...
Nh6 {[%clk 0:01:57.2]} 23. Bh3 {[%clk 0:01:38]} 23... a4 {[%clk 0:01:52]} 24. b4
{[%clk 0:01:25]} 24... Nc4 {[%clk 0:01:21.4]} 25. Qd3 {[%clk 0:01:24.8]} 25...
Rc6 {[%clk 0:00:51]} 26. Bh4 {[%clk 0:01:23.3]} 26... Qc7 {[%clk 0:00:46.5]} 27.
Bg5 {[%clk 0:01:16.2]} 27... Nb6 {[%clk 0:00:30.3]} 28. f5 {[%clk 0:00:58.1]}
28... gxf5 {[%clk 0:00:28.5]} 29. gxf5 {[%clk 0:00:56.7]} 29... Rc2 {[%clk
0:00:28.5]} 30. Rxc2 {[%clk 0:00:39.7]} 30... Qxc2 {[%clk 0:00:28.6]} 31. Qxc2
{[%clk 0:00:34.7]} 31... Rxc2 {[%clk 0:00:29.5]} 32. Ng3 {[%clk 0:00:20.6]}
32... exf5 {[%clk 0:00:27.2]} 33. Nxf5 {[%clk 0:00:18.5]} 33... Nxf5 {[%clk
0:00:23.1]} 34. Bxf5 {[%clk 0:00:18.8]} 34... Rc3 {[%clk 0:00:22.9]} 35. e6
{[%clk 0:00:15.9]} 35... f6 {[%clk 0:00:16.9]} 36. e7 {[%clk 0:00:10]} 36... Kf7
{[%clk 0:00:16.8]} 37. Re1 {[%clk 0:00:10.3]} 37... Bc6 {[%clk 0:00:15.5]} 38.
Be3 {[%clk 0:00:04.1]} 38... Rxa3 {[%clk 0:00:11.7]} 39. Nh4 {[%clk 0:00:04.4]}
39... Kxe7 {[%clk 0:00:01.6]} 40. Bc1+ {[%clk 0:00:04.2]} 40... Kd8 {[%clk
0:00:02]} 41. Bxa3 {[%clk 0:00:04.4]} 41... Bh6 {[%clk 0:00:02.3]} 42. Bc1
{[%clk 0:00:03.9]} 42... Bxc1 {[%clk 0:00:01.8]} 43. Rxc1 {[%clk 0:00:04.8]}
43... Nc4 {[%clk 0:00:02.4]} 44. Ng2 {[%clk 0:00:02.3]} 44... Be8 {[%clk
0:00:02.5]} 45. Nf4 {[%clk 0:00:02.5]} 45... Ke7 {[%clk 0:00:02.6]} 46. Nxd5+
{[%clk 0:00:02.7]} 46... Kd6 {[%clk 0:00:03]} 47. Nc3 {[%clk 0:00:03.6]} 47...
Bc6 {[%clk 0:00:02.5]} 48. Bd3 {[%clk 0:00:04.2]} 48... a3 {[%clk 0:00:02]} 49.
Bxc4 {[%clk 0:00:04.1]} 49... bxc4 {[%clk 0:00:02.9]} 50. b5 {[%clk 0:00:04.6]}
50... Bb7 {[%clk 0:00:03]} 51. Ra1 {[%clk 0:00:05.2]} 51... f5 {[%clk
0:00:03.2]} 52. Rxa3 {[%clk 0:00:06]} 52... f4 {[%clk 0:00:02.7]} 53. Kf2 {[%clk
0:00:06.9]} 1-0

[Event "*** Titled Tuesday Blitz"]
[Site "Chess.com"]
[Date "2020.05.26"]
[Round "1"]
[White "farzadbfd"]
[Black "Susal_De_Silva"]
[Result "1/2-1/2"]
[WhiteElo "2744"]
[BlackElo "2392"]
[TimeControl "180+1"]
[EndTime "10:08:07 PDT"]
[Termination "Game drawn by repetition"]

1. e4 {[%clk 0:02:57.8]} 1... e5 {[%clk 0:02:59.9]} 2. Nf3 {[%clk 0:02:57.8]}
2... Nc6 {[%clk 0:03:00.2]} 3. Bc4 {[%clk 0:02:58.3]} 3... Nf6 {[%clk 0:03:00]}
4. d3 {[%clk 0:02:58.6]} 4... Bc5 {[%clk 0:03:00.3]} 5. O-O {[%clk 0:02:59.1]}
5... O-O {[%clk 0:03:00.4]} 6. Re1 {[%clk 0:02:59.5]} 6... d6 {[%clk 0:02:56.6]}
7. c3 {[%clk 0:02:59.8]} 7... a6 {[%clk 0:02:56.6]} 8. Bb3 {[%clk 0:03:00.1]}
8... Ba7 {[%clk 0:02:55.6]} 9. Nbd2 {[%clk 0:03:00.1]} 9... h6 {[%clk
0:02:55.6]} 10. Nf1 {[%clk 0:03:00]} 10... Be6 {[%clk 0:02:55.6]} 11. Ng3 {[%clk
0:02:59.7]} 11... Ne7 {[%clk 0:02:53.7]} 12. d4 {[%clk 0:02:59.6]} 12... Ng6
{[%clk 0:02:52.8]} 13. Bxe6 {[%clk 0:02:51.4]} 13... fxe6 {[%clk 0:02:52.3]} 14.
dxe5 {[%clk 0:02:51.6]} 14... Nxe5 {[%clk 0:02:50.7]} 15. Nxe5 {[%clk
0:02:49.9]} 15... dxe5 {[%clk 0:02:36.4]} 16. Be3 {[%clk 0:02:48]} 16... Bxe3
{[%clk 0:02:32.7]} 17. Rxe3 {[%clk 0:02:48.9]} 17... Qxd1+ {[%clk 0:02:19.4]}
18. Rxd1 {[%clk 0:02:48]} 18... Rfd8 {[%clk 0:02:20.1]} 19. Red3 {[%clk
0:02:47]} 19... Rxd3 {[%clk 0:02:20.3]} 20. Rxd3 {[%clk 0:02:47.9]} 20... Kf7
{[%clk 0:02:20.5]} 21. f3 {[%clk 0:02:36.3]} 21... Ke7 {[%clk 0:02:20.1]} 22.
Kf2 {[%clk 0:02:30.5]} 22... Rf8 {[%clk 0:02:18.8]} 23. Ke2 {[%clk 0:02:27.2]}
23... g6 {[%clk 0:02:16.1]} 24. Nf1 {[%clk 0:02:26.9]} 24... Nd7 {[%clk
0:02:14.9]} 25. Ne3 {[%clk 0:02:26.1]} 25... Nc5 {[%clk 0:02:14]} 26. Rd2 {[%clk
0:02:24.2]} 26... Nd7 {[%clk 0:02:12.3]} 27. a4 {[%clk 0:02:20.9]} 27... b6
{[%clk 0:02:07.3]} 28. b4 {[%clk 0:02:20.6]} 28... h5 {[%clk 0:02:05.5]} 29. h4
{[%clk 0:02:17.1]} 29... Rf4 {[%clk 0:02:03.9]} 30. g3 {[%clk 0:02:16.8]} 30...
Rf8 {[%clk 0:02:04.4]} 31. Nc4 {[%clk 0:02:15.1]} 31... Rg8 {[%clk 0:01:58.8]}
32. Ke3 {[%clk 0:01:58.6]} 32... Rf8 {[%clk 0:01:58]} 33. a5 {[%clk 0:01:54.6]}
33... b5 {[%clk 0:01:57.3]} 34. Nb2 {[%clk 0:01:54.2]} 34... c5 {[%clk
0:01:55.2]} 35. Nd3 {[%clk 0:01:54.4]} 35... c4 {[%clk 0:01:40.5]} 36. Nf2
{[%clk 0:01:51.7]} 36... Rd8 {[%clk 0:01:39.2]} 37. Nh3 {[%clk 0:01:31.8]} 37...
Rf8 {[%clk 0:01:28.1]} 38. Rg2 {[%clk 0:01:24.3]} 38... Nf6 {[%clk 0:01:27.5]}
39. Nf2 {[%clk 0:01:10.7]} 39... Rd8 {[%clk 0:01:25.3]} 40. g4 {[%clk 0:01:11]}
40... hxg4 {[%clk 0:01:25.7]} 41. fxg4 {[%clk 0:01:11.9]} 41... Rh8 {[%clk
0:01:25.9]} 42. Rh2 {[%clk 0:01:02.4]} 42... g5 {[%clk 0:01:22.6]} 43. h5 {[%clk
0:00:59.8]} 43... Rd8 {[%clk 0:01:16.2]} 44. Rh1 {[%clk 0:00:52.1]} 44... Kf7
{[%clk 0:01:13.7]} 45. Ke2 {[%clk 0:00:51.3]} 45... Ke7 {[%clk 0:01:06.1]} 46.
Rd1 {[%clk 0:00:50.8]} 46... Rxd1 {[%clk 0:01:01.3]} 47. Kxd1 {[%clk 0:00:51]}
47... Kf7 {[%clk 0:01:01]} 48. Ke2 {[%clk 0:00:51]} 48... Ke7 {[%clk 0:01:00.4]}
49. Kf3 {[%clk 0:00:50.7]} 49... Nh7 {[%clk 0:00:57.9]} 50. Nh3 {[%clk 0:00:49]}
50... Kf6 {[%clk 0:00:57.4]} 51. Ke3 {[%clk 0:00:38.2]} 51... Ke7 {[%clk
0:00:56]} 52. Ng1 {[%clk 0:00:38.5]} 52... Kf6 {[%clk 0:00:54.1]} 53. Nf3 {[%clk
0:00:38.3]} 53... Nf8 {[%clk 0:00:53]} 54. Kf2 {[%clk 0:00:36.9]} 54... Nh7
{[%clk 0:00:53.4]} 55. Kg3 {[%clk 0:00:36.9]} 55... Nf8 {[%clk 0:00:53.5]} 56.
Kg2 {[%clk 0:00:37.2]} 56... Nh7 {[%clk 0:00:53.5]} 57. Kf1 {[%clk 0:00:37.8]}
57... Nf8 {[%clk 0:00:53.5]} 58. Ke2 {[%clk 0:00:38.4]} 58... Nh7 {[%clk
0:00:53.7]} 59. Nd2 {[%clk 0:00:39.1]} 59... Ke7 {[%clk 0:00:52]} 60. Ke3 {[%clk
0:00:39.3]} 60... Nf6 {[%clk 0:00:50.4]} 61. Kf3 {[%clk 0:00:39]} 61... Nh7
{[%clk 0:00:47]} 62. h6 {[%clk 0:00:26]} 62... Kd6 {[%clk 0:00:42.4]} 63. Ke3
{[%clk 0:00:20.3]} 63... Nf6 {[%clk 0:00:40.3]} 64. Kf3 {[%clk 0:00:20.5]} 64...
Nh7 {[%clk 0:00:40.8]} 65. Nf1 {[%clk 0:00:20.6]} 65... Ke7 {[%clk 0:00:40.5]}
66. Ng3 {[%clk 0:00:20.7]} 66... Kf6 {[%clk 0:00:40.6]} 67. Nf1 {[%clk
0:00:19.7]} 67... Ke7 {[%clk 0:00:40.8]} 68. Nd2 {[%clk 0:00:20]} 68... Kd6
{[%clk 0:00:39.8]} 1/2-1/2

[Event "*** Titled Tuesday Blitz"]
[Site "Chess.com"]
[Date "2020.05.26"]
[Round "1"]
[White "MomchilPetkov"]
[Black "joejan"]
[Result "1/2-1/2"]
[WhiteElo "2530"]
[BlackElo "2206"]
[TimeControl "180+1"]
[EndTime "10:08:07 PDT"]
[Termination "Game drawn - insufficient material"]

1. d4 {[%clk 0:03:00.8]} 1... Nf6 {[%clk 0:02:58.4]} 2. c4 {[%clk 0:03:00.6]}
2... e6 {[%clk 0:02:58.5]} 3. Nc3 {[%clk 0:03:00.6]} 3... Bb4 {[%clk 0:02:58.2]}
4. Bd2 {[%clk 0:02:59]} 4... O-O {[%clk 0:02:56.5]} 5. e3 {[%clk 0:02:58.6]}
5... d5 {[%clk 0:02:55.5]} 6. Nf3 {[%clk 0:02:57.8]} 6... Nbd7 {[%clk
0:02:51.3]} 7. cxd5 {[%clk 0:02:54.4]} 7... exd5 {[%clk 0:02:49.9]} 8. Bd3
{[%clk 0:02:54.1]} 8... c6 {[%clk 0:02:49.1]} 9. O-O {[%clk 0:02:51.5]} 9... Re8
{[%clk 0:02:49]} 10. Rc1 {[%clk 0:02:43.4]} 10... Nf8 {[%clk 0:02:44]} 11. Ne5
{[%clk 0:02:43]} 11... Ng6 {[%clk 0:02:42.3]} 12. f4 {[%clk 0:02:41.7]} 12...
Bd6 {[%clk 0:02:31.9]} 13. Be1 {[%clk 0:02:31.3]} 13... a5 {[%clk 0:02:29.1]}
14. Qf3 {[%clk 0:02:20.8]} 14... Qb6 {[%clk 0:02:27.1]} 15. Rc2 {[%clk 0:02:03]}
15... a4 {[%clk 0:02:23.3]} 16. Bg3 {[%clk 0:01:56.4]} 16... a3 {[%clk
0:02:19.7]} 17. b3 {[%clk 0:01:56.7]} 17... Re7 {[%clk 0:01:57.8]} 18. Kh1
{[%clk 0:01:55]} 18... Qd8 {[%clk 0:01:47.4]} 19. h4 {[%clk 0:01:43.1]} 19...
Qe8 {[%clk 0:01:32.1]} 20. h5 {[%clk 0:01:38.4]} 20... Bxe5 {[%clk 0:01:19.6]}
21. fxe5 {[%clk 0:01:03.7]} 21... Bg4 {[%clk 0:01:17]} 22. exf6 {[%clk
0:00:34.8]} 22... Bxf3 {[%clk 0:01:15.3]} 23. hxg6 {[%clk 0:00:35.2]} 23... Rxe3
{[%clk 0:01:09.3]} 24. gxh7+ {[%clk 0:00:32.5]} 24... Kh8 {[%clk 0:01:08.8]} 25.
fxg7+ {[%clk 0:00:31.4]} 25... Kxg7 {[%clk 0:01:08.6]} 26. Rxf3 {[%clk
0:00:28.2]} 26... Rxf3 {[%clk 0:01:04.1]} 27. gxf3 {[%clk 0:00:29.1]} 27... f6
{[%clk 0:01:03]} 28. Rg2 {[%clk 0:00:27.7]} 28... Qh5+ {[%clk 0:00:52.5]} 29.
Bh2+ {[%clk 0:00:22.5]} 29... Kf7 {[%clk 0:00:43.6]} 30. Bg6+ {[%clk 0:00:20.7]}
30... Qxg6 {[%clk 0:00:43.8]} 31. Rxg6 {[%clk 0:00:21.6]} 31... Kxg6 {[%clk
0:00:44.2]} 32. Bd6 {[%clk 0:00:19.1]} 32... Kxh7 {[%clk 0:00:43.2]} 33. Kg2
{[%clk 0:00:19.3]} 33... Kg6 {[%clk 0:00:43.2]} 34. Kf2 {[%clk 0:00:19.5]} 34...
Kf5 {[%clk 0:00:42.9]} 35. Ne2 {[%clk 0:00:19.9]} 35... b6 {[%clk 0:00:40.3]}
36. Bb4 {[%clk 0:00:19.6]} 36... Ke6 {[%clk 0:00:37.6]} 37. Ke3 {[%clk
0:00:19.3]} 37... Rh8 {[%clk 0:00:35.7]} 38. Bxa3 {[%clk 0:00:19.2]} 38... Ra8
{[%clk 0:00:35.2]} 39. Bc1 {[%clk 0:00:16.2]} 39... Rxa2 {[%clk 0:00:35.4]} 40.
b4 {[%clk 0:00:16.7]} 40... Rc2 {[%clk 0:00:33.5]} 41. Bd2 {[%clk 0:00:16.6]}
41... Ra2 {[%clk 0:00:31.8]} 42. Kd3 {[%clk 0:00:16.9]} 42... Ra3+ {[%clk
0:00:31.5]} 43. Bc3 {[%clk 0:00:17.4]} 43... Kf5 {[%clk 0:00:29.1]} 44. Ke3
{[%clk 0:00:15.7]} 44... Kg5 {[%clk 0:00:25.7]} 45. Kd3 {[%clk 0:00:15.1]} 45...
Kh4 {[%clk 0:00:24.3]} 46. Nf4 {[%clk 0:00:15.4]} 46... Kg3 {[%clk 0:00:22.8]}
47. Nh5+ {[%clk 0:00:15.7]} 47... Kxf3 {[%clk 0:00:22.6]} 48. Nxf6 {[%clk
0:00:16.6]} 48... Ra7 {[%clk 0:00:18.3]} 49. Bd2 {[%clk 0:00:13.1]} 49... Re7
{[%clk 0:00:16]} 50. Ng8 {[%clk 0:00:10.3]} 50... Rc7 {[%clk 0:00:15.4]} 51. Nh6
{[%clk 0:00:10.3]} 51... c5 {[%clk 0:00:14.8]} 52. bxc5 {[%clk 0:00:10]} 52...
bxc5 {[%clk 0:00:14.8]} 53. dxc5 {[%clk 0:00:10.9]} 53... Rxc5 {[%clk
0:00:14.8]} 54. Nf5 {[%clk 0:00:11.8]} 54... Kg4 {[%clk 0:00:13.4]} 55. Nd4
{[%clk 0:00:12.7]} 55... Rc4 {[%clk 0:00:12.7]} 56. Be3 {[%clk 0:00:12.3]} 56...
Ra4 {[%clk 0:00:12.7]} 57. Ne2 {[%clk 0:00:12.2]} 57... Kh3 {[%clk 0:00:12.7]}
58. Bd4 {[%clk 0:00:12.4]} 58... Kh4 {[%clk 0:00:12.6]} 59. Nc3 {[%clk
0:00:12.9]} 59... Rxd4+ {[%clk 0:00:10.5]} 60. Kxd4 {[%clk 0:00:13.8]} 60... Kg4
{[%clk 0:00:10.6]} 61. Nxd5 {[%clk 0:00:14.7]} 1/2-1/2